bitfinex-derivatives/quotes_ETHF0:USTF0_20250427
["timestamp","ask_amount","ask_price","bid_price","bid_amount"]
[1745725654481,31.7528959,1812.0,1811.9,4.71446]
[1745725654685,30.0882959,1812.0,1811.9,9.71446]
[1745725655083,30.0882959,1812.0,1811.9,13.43646]
[1745725657083,1.6939,1812.2,1812.1,1.10333]
[1745725657281,1.6939,1812.2,1812.1,4.31113]
[1745725658785,3.62062,1812.2,1812.1,4.31113]
[1745725660482,4.72389,1812.2,1812.1,3.2078]
[1745725660685,4.72389,1812.2,1812.1,4.31113]
[1745725661186,9.72389,1812.2,1812.1,3.609]
[1745725661392,4.72389,1812.2,1812.1,3.609]
[1745725661583,4.72389,1812.2,1812.1,4.71233]
[1745725661995,3.62062,1812.2,1812.1,4.71233]
[1745725662383,4.72389,1812.2,1812.1,4.71233]
[1745725664091,4.72389,1812.2,1812.1,3.609]
[1745725664384,3.62062,1812.2,1812.1,4.71233]
[1745725664591,1.6939,1812.2,1812.1,4.71233]
[1745725664989,4.31093,1812.5,1812.4,1.10315]
[1745725665190,4.31093,1812.5,1812.4,4.71115]
[1745725665191,3.2078,1812.5,1812.4,4.71115]
[1745725666083,4.31089,1812.5,1812.4,4.71115]
[1745725666490,3.2078,1812.5,1812.4,4.71115]
[1745725666994,1.6976,1812.6,1812.5,1.10309]
[1745725667193,1.6976,1812.6,1812.5,4.82509]
[1745725667394,1.6976,1812.6,1812.5,3.722]
[1745725667395,7.93515,1812.6,1812.5,3.722]
[1745725667892,9.65335,1812.6,1812.5,3.722]
[1745725668088,9.65335,1812.6,1812.3,3.607]
[1745725668294,1.10315,1812.4,1812.3,4.71021]
[1745725668594,1.10315,1812.4,1812.3,3.607]
[1745725668794,3.02987,1812.4,1812.3,4.71021]
[1745725668996,3.02987,1812.4,1812.3,3.607]
[1745725668997,6.23767,1812.4,1812.3,3.607]
[1745725669495,6.23767,1812.4,1812.2,1.10322]
[1745725669496,1.10321,1812.3,1812.2,1.10322]
[1745725669697,2.83151,1812.3,1812.2,4.85922]
[1745725669996,2.83151,1812.3,1811.9,8.72506]
[1745725669997,1.10327,1812.2,1812.1,1.10329]
[1745725670295,2.83157,1812.2,1812.1,4.85929]
[1745725670590,1.7283,1812.2,1812.1,4.85929]
[1745725670895,2.83157,1812.2,1812.1,4.85929]
[1745725673497,1.7283,1812.2,1812.1,4.85929]
[1745725673890,1.7283,1812.2,1812.1,9.85929]
[1745725674996,1.7283,1812.2,1812.1,4.85929]
[1745725676097,2.83157,1812.2,1812.1,4.85929]
[1745725676596,1.7283,1812.2,1812.1,4.85929]
[1745725677000,2.83157,1812.2,1812.1,4.85929]
[1745725679597,4.75829,1812.2,1812.1,4.85929]
[1745725680290,4.75829,1812.2,1812.0,3.2078]
[1745725680291,1.10333,1812.1,1812.0,3.2078]
[1745725680495,3.2484,1812.1,1812.0,8.06619]
[1745725680694,5.17512,1812.1,1812.0,8.06619]
[1745725680894,6.27845,1812.1,1812.0,8.06619]
[1745725681298,6.27845,1812.1,1812.0,4.31119]
[1745725681604,5.17512,1812.1,1812.0,8.06619]
[1745725681804,6.27845,1812.1,1812.0,8.06619]
[1745725682801,5.96569,1812.4,1812.1,1.10328]
[1745725682999,2.66794,1812.3,1812.2,1.10327]
[1745725683200,2.66794,1812.3,1812.2,4.85827]
[1745725683400,4.59466,1812.3,1812.2,4.85827]
[1745725683597,1.5647,1812.3,1812.2,4.85827]
[1745725683997,7.0151,1812.5,1812.4,1.10315]
[1745725684205,1.1031,1812.5,1812.4,1.10315]
[1745725685701,1.1031,1812.5,1812.2,9.64007]
[1745725685702,1.10321,1812.3,1812.2,1.10327]
[1745725685902,1.10321,1812.3,1812.2,4.85827]
[1745725686102,3.02993,1812.3,1812.2,4.85827]
[1745725687305,4.66243,1812.3,1812.2,4.85827]
[1745725687505,3.55922,1812.3,1812.0,1.10338]
[1745725687705,3.58427,1812.2,1812.1,4.85833]
[1745725688103,5.51099,1812.2,1812.1,4.85833]
[1745725688408,4.40772,1812.2,1812.1,4.85833]
[1745725688602,5.51099,1812.2,1812.1,4.85833]
[1745725689007,4.40772,1812.2,1812.1,4.85833]
[1745725689306,1.10326,1812.3,1812.2,1.10327]
[1745725690104,0.857,1812.4,1812.3,1.10321]
[1745725690304,1.10321,1812.4,1812.2,3.2078]
[1745725690611,1.10321,1812.4,1812.3,1.10319]
[1745725690804,2.78611,1812.4,1812.3,1.10319]
[1745725692011,2.78611,1812.4,1812.2,5.5865]
[1745725692012,1.10321,1812.3,1812.2,6.68972]
[1745725692308,2.81701,1812.3,1812.2,6.68972]
[1745725692505,1.7138,1812.3,1812.2,6.68972]
[1745725693111,2.81701,1812.3,1812.2,6.68972]
[1745725693312,1.7138,1812.3,1812.2,6.68972]
[1745725694410,1.7138,1812.3,1812.2,10.41172]
[1745725694606,1.7138,1812.3,1812.2,8.83842]
[1745725695006,4.74373,1812.3,1812.2,10.6848]
[1745725695308,4.74373,1812.3,1812.2,8.06607]
[1745725695508,4.74373,1812.3,1812.2,4.85827]
[1745725696113,3.64052,1812.3,1812.2,8.06607]
[1745725696312,1.7138,1812.3,1812.2,4.85827]
[1745725696610,1.10307,1812.6,1812.5,1.10305]
[1745725696801,1.10307,1812.6,1812.5,4.85805]
[1745725696802,4.73089,1812.6,1812.5,4.85805]
[1745725697912,6.33609,1812.6,1812.5,4.85805]
[1745725698616,6.33609,1812.6,1812.5,3.755]
[1745725699412,6.33609,1812.6,1812.5,4.85809]
[1745725699613,6.33609,1812.6,1812.5,3.755]
[1745725699916,6.33609,1812.6,1812.5,4.85809]
[1745725700613,6.33609,1812.6,1812.5,3.755]
[1745725700816,6.33609,1812.6,1812.5,4.85809]
[1745725701716,6.33609,1812.6,1812.5,3.755]
[1745725701905,6.33609,1812.6,1812.5,4.85809]
[1745725707515,1.10321,1812.3,1812.2,3.2078]
[1745725707722,1.10321,1812.3,1812.2,3.718]
[1745725707918,3.02993,1812.3,1812.2,3.718]
[1745725708114,4.76083,1812.3,1812.2,3.718]
[1745725709809,1.10327,1812.2,1812.1,3.718]
[1745725710014,4.39807,1812.2,1812.1,3.718]
[1745725710320,6.32479,1812.2,1812.1,3.718]
[1745725711720,7.97971,1812.2,1811.7,3.2078]
[1745725711916,1.10357,1811.8,1811.7,4.31137]
[1745725712117,1.10357,1811.8,1811.7,11.75237]
[1745725712422,3.03029,1811.8,1811.7,7.441]
[1745725712623,3.03029,1811.8,1811.7,8.54458]
[1745725712818,4.64839,1811.8,1811.7,3.722]
[1745725713124,1.10362,1811.7,1811.6,1.10359]
[1745725713323,2.82832,1811.7,1811.6,1.10359]
[1745725713623,4.75504,1811.7,1811.6,1.10359]
[1745725714523,4.755,1811.7,1811.6,1.10359]
[1745725714924,1.10364,1811.6,1811.5,8.54467]
[1745725715122,2.82834,1811.6,1811.5,8.54467]
[1745725716231,2.82834,1811.6,1811.5,7.441]
[1745725716438,2.82834,1811.6,1811.5,8.5447]
[1745725716731,2.82834,1811.6,1811.5,4.8257]
[1745725716927,2.82834,1811.6,1811.5,8.5447]
[1745725717532,2.82834,1811.6,1811.5,4.8257]
[1745725718033,2.82834,1811.6,1811.5,8.5447]
[1745725718329,2.82834,1811.6,1811.5,4.8257]
[1745725718530,2.82834,1811.6,1811.5,8.5447]
[1745725720738,2.82834,1811.6,1811.5,3.722]
[1745725720931,4.75506,1811.6,1811.5,7.441]
[1745725721630,4.75506,1811.6,1811.5,3.722]
[1745725722032,7.96286,1811.6,1811.5,3.722]
[1745725722338,1.1037,1811.5,1811.4,3.719]
[1745725722530,2.8038,1811.5,1811.4,3.719]
[1745725722729,4.73052,1811.5,1811.4,3.719]
[1745725723234,4.73052,1811.5,1811.4,7.441]
[1745725724130,4.73052,1811.5,1811.4,4.82576]
[1745725724431,1.7001,1811.5,1811.4,4.82576]
[1745725725036,2.8038,1811.5,1811.4,6.39986]
[1745725725435,1.7001,1811.5,1811.4,6.39986]
[1745725726734,1.6544,1811.7,1811.6,1.10358]
[1745725726934,1.6544,1811.7,1811.6,4.82358]
[1745725727234,2.75798,1811.7,1811.6,4.82358]
[1745725728038,2.75798,1811.7,1811.6,4.82364]
[1745725732230,2.75798,1811.7,1811.6,3.72]
[1745725732739,1.10364,1811.6,1811.5,3.722]
[1745725732932,2.74524,1811.6,1811.5,7.41]
[1745725733133,4.67196,1811.6,1811.5,7.41]
[1745725734131,4.67196,1811.6,1811.5,3.688]
[1745725735035,4.67196,1811.6,1811.5,7.41]
[1745725736541,4.67196,1811.6,1811.5,3.722]
[1745725736743,4.67196,1811.6,1811.5,7.41]
[1745725737244,3.56832,1811.6,1811.1,4.0429]
[1745725737541,1.10388,1811.3,1811.2,4.79182]
[1745725737740,1.10382,1811.4,1811.3,1.10376]
[1745725737942,2.77872,1811.4,1811.3,4.79176]
[1745725738143,4.70544,1811.4,1811.3,8.51376]
[1745725739144,4.70544,1811.4,1811.3,7.41]
[1745725739340,4.70544,1811.4,1811.3,3.722]
[1745725739540,4.70544,1811.4,1811.3,7.41]
[1745725741244,4.70544,1811.4,1811.3,3.722]
[1745725742144,1.10382,1811.3,1811.2,4.79287]
[1745725742739,1.10388,1811.2,1811.1,4.3117]
[1745725742942,1.10388,1811.2,1811.1,3.689]
[1745725743141,1.10394,1811.1,1811.0,4.82596]
[1745725743341,1.10394,1811.1,1811.0,8.51496]
[1745725744942,1.10394,1811.1,1811.0,4.82596]
[1745725745145,3.03066,1811.1,1811.0,7.411]
[1745725745537,3.03066,1811.1,1811.0,8.515]
[1745725748048,3.03066,1811.1,1811.0,7.411]
[1745725748248,3.03066,1811.1,1811.0,3.722]
[1745725748446,3.03066,1811.1,1811.0,7.411]
[1745725749149,3.03066,1811.1,1811.0,8.515]
[1745725749952,1.10386,1811.3,1811.2,1.10382]
[1745725750151,3.03058,1811.3,1811.2,4.82582]
[1745725751646,4.63628,1811.3,1811.2,4.82582]
[1745725751855,4.63628,1811.3,1811.2,3.722]
[1745725752558,4.63628,1811.3,1811.2,4.82588]
[1745725752950,4.63628,1811.3,1811.2,3.722]
[1745725755256,1.10388,1811.2,1811.1,1.1039]
[1745725755458,2.79628,1811.2,1811.1,1.1039]
[1745725755756,2.79628,1811.2,1811.0,3.689]
[1745725755757,1.10394,1811.1,1811.0,4.79296]
[1745725756052,1.6924,1811.1,1811.0,11.72276]
[1745725756253,2.79634,1811.1,1811.0,11.72276]
[1745725758357,2.79634,1811.1,1811.0,8.51496]
[1745725759063,4.72306,1811.1,1811.0,7.411]
[1745725759861,4.72306,1811.1,1811.0,8.515]
[1745725760162,4.72306,1811.1,1811.0,7.411]
[1745725760853,4.72306,1811.1,1811.0,8.515]
[1745725761659,4.72306,1811.1,1811.0,3.722]
[1745725761959,4.72306,1811.1,1811.0,7.365]
[1745725763860,4.72306,1811.1,1811.0,3.722]
[1745725764060,5.54706,1811.1,1811.0,3.722]
[1745725764269,5.54706,1811.1,1811.0,7.365]
[1745725764458,5.54706,1811.1,1811.0,3.722]
[1745725764761,8.75486,1811.1,1811.0,3.722]
[1745725765056,1.10413,1810.8,1810.7,2.67754]
[1745725765250,1.10413,1810.8,1810.7,1.10414]
[1745725765455,3.58523,1810.8,1810.7,4.74714]
[1745725766056,3.58523,1810.8,1810.7,8.46914]
[1745725768653,5.51195,1810.8,1810.7,3.722]
[1745725769050,1.10443,1810.3,1810.2,5.5712]
[1745725769250,1.10443,1810.3,1810.2,3.2078]
[1745725769451,3.03115,1810.3,1810.2,6.8508]
[1745725769861,3.03115,1810.3,1810.2,3.643]
[1745725770060,1.10455,1810.1,1810.0,9.23396441]
[1745725770362,1.10455,1810.1,1810.0,12.87696441]
[1745725770759,2.74225,1810.1,1810.0,5.53717]
[1745725770954,1.6377,1810.1,1810.0,5.53717]
[1745725771160,1.6377,1810.1,1810.0,9.25917]
[1745725771359,1.6377,1810.1,1810.0,10.83477]
[1745725773368,2.74225,1810.1,1810.0,10.83477]
[1745725774966,0.8095,1810.4,1810.3,1.10443]
[1745725775170,3.5504,1810.4,1810.3,8.47043]
[1745725780570,2.7409,1810.4,1810.3,8.47043]
[1745725783478,1.6365,1810.4,1810.3,8.47043]
[1745725783974,2.74087,1810.4,1810.3,10.04543]
[1745725788780,2.74087,1810.4,1810.3,13.25323]
[1745725792680,9.66759,1810.4,1810.3,6.9298]
[1745725792888,1.10461,1810.0,1809.9,1.68928]
[1745725793181,1.10461,1810.0,1809.9,5.41128]
[1745725794185,2.71381,1810.0,1809.9,1.68928]
[1745725794879,1.10467,1809.9,1809.8,3.2078]
[1745725795086,2.78527,1809.9,1809.8,6.8238]
[1745725795399,2.78527,1809.9,1809.8,3.616]
[1745725796090,1.1048,1809.8,1809.7,1.10476]
[1745725796281,2.78534,1809.8,1809.7,3.616]
[1745725797081,2.78534,1809.8,1809.7,7.338]
[1745725799088,2.78534,1809.8,1809.7,7.339]
[1745725800886,2.78534,1809.8,1809.7,8.4438]
[1745725802877,2.78534,1809.8,1809.7,7.339]
[1745725803084,2.78534,1809.8,1809.7,4.7218]
[1745725803685,2.78534,1809.8,1809.7,7.9296]
[1745725804084,2.78534,1809.8,1809.7,13.3414]
[1745725804491,1.6806,1809.8,1809.7,13.3414]
[1745725804883,2.78534,1809.8,1809.7,13.3414]
[1745725805787,1.6806,1809.8,1809.7,13.3414]
[1745725806588,1.10466,1810.0,1809.9,1.10467]
[1745725806788,2.81171,1810.0,1809.9,1.10467]
[1745725807290,2.81171,1810.0,1809.9,4.82667]
[1745725810896,2.81171,1810.0,1809.9,8.03447]
[1745725812697,1.7071,1810.0,1809.9,8.03447]
[1745725812892,10.22424,1810.4,1810.3,1.10443]
[1745725813090,1.10443,1810.3,1810.2,3.617]
[1745725813290,1.10443,1810.3,1810.2,4.72149]
[1745725813600,1.10449,1810.2,1810.1,3.2078]
[1745725813797,1.10449,1810.2,1810.1,6.8248]
[1745725814290,2.79749,1810.2,1810.1,6.8248]
[1745725814498,2.79749,1810.2,1810.1,7.92935]
[1745725818192,2.79749,1810.2,1810.1,4.72155]
[1745725819799,2.79749,1810.2,1810.1,3.617]
[1745725820495,1.10455,1810.1,1810.0,3.722]
[1745725820802,2.79265,1810.1,1810.0,3.722]
[1745725821096,1.10467,1809.9,1809.8,6.8248]
[1745725821701,1.10467,1809.9,1809.8,7.92954]
[1745725821997,2.79277,1809.9,1809.8,7.92954]
[1745725822193,2.79277,1809.9,1809.8,11.65154]
[1745725824003,2.79277,1809.9,1809.8,7.339]
[1745725824498,2.79277,1809.9,1809.8,8.44374]
[1745725824698,2.79277,1809.9,1809.8,7.339]
[1745725825002,2.78697037,1809.9,1809.8,7.339]
[1745725825202,2.78697037,1809.9,1809.8,4.72174]
[1745725826103,2.78697037,1809.9,1809.8,8.44374]
[1745725828399,2.78697037,1809.9,1809.8,7.339]
[1745725829099,2.78697037,1809.9,1809.8,3.617]
[1745725835211,2.78697037,1809.9,1809.8,4.72174]
[1745725836118,2.78697037,1809.9,1809.8,8.44374]
[1745725836413,2.78697037,1809.9,1809.8,7.339]
[1745725836915,2.78697037,1809.9,1809.8,8.44374]
[1745725837309,2.78697037,1809.9,1809.8,3.722]
[1745725837514,5.99477037,1809.9,1809.8,3.722]
[1745725837816,10.99477037,1809.9,1809.8,1.1211]
[1745725838219,1.10492,1809.5,1809.4,4.31276]
[1745725838606,1.10492,1809.5,1809.4,3.2078]
[1745725839118,1.10498,1809.4,1809.3,5.1926]
[1745725839319,1.10498,1809.4,1809.3,6.29764]
[1745725839722,1.10498,1809.4,1809.3,5.1926]
[1745725840125,1.10498,1809.4,1809.3,8.9146]
[1745725840424,1.10498,1809.4,1809.3,8.9156]
[1745725840925,1.10498,1809.4,1809.3,10.02064]
[1745725842025,2.75305,1809.5,1809.4,1.10498]
[1745725842220,2.75305,1809.5,1809.4,2.73968]
[1745725843333,2.75305,1809.5,1809.4,6.46168]
[1745725843529,2.75305,1809.5,1809.4,10.07968]
[1745725844228,2.75305,1809.5,1809.4,8.9747]
[1745725844431,2.75305,1809.5,1809.4,10.07968]
[1745725846028,1.1048,1809.8,1809.7,1.10475]
[1745725846223,5.912,1810.0,1809.9,1.10467]
[1745725846426,4.31235,1810.1,1810.0,1.10461]
[1745725846726,4.31235,1810.1,1810.0,4.72261]
[1745725846921,4.31235,1810.1,1810.0,3.618]
[1745725847234,4.31235,1810.1,1810.0,7.34]
[1745725848337,6.72505,1810.1,1810.0,8.44461]
[1745725848631,6.72505,1810.1,1810.0,7.34]
[1745725848930,6.72505,1810.1,1810.0,8.44461]
[1745725849333,6.72505,1810.1,1810.0,7.34]
[1745725850532,6.72505,1810.1,1810.0,8.44461]
[1745725850833,6.72505,1810.1,1810.0,7.34]
[1745725851035,6.72505,1810.1,1810.0,3.722]
[1745725851234,11.72505,1810.1,1810.0,3.722]
[1745725851534,6.72505,1810.1,1810.0,3.722]
[1745725852234,1.10461,1810.0,1809.9,3.618]
[1745725852532,2.67431,1810.0,1809.9,3.618]
[1745725852731,1.10474,1809.9,1809.8,4.72173]
[1745725852931,1.10474,1809.8,1809.7,2.71906]
[1745725853131,2.74874,1809.8,1809.7,6.33606]
[1745725853732,2.74874,1809.8,1809.7,1.6143]
[1745725854032,1.10485,1809.7,1809.6,3.617]
[1745725854228,2.71305,1809.7,1809.6,3.617]
[1745725854429,2.71305,1809.7,1809.6,4.72186]
[1745725855429,2.74877,1809.8,1809.7,1.1048]
[1745725855827,2.74877,1809.8,1809.6,4.7218]
[1745725855828,1.1048,1809.7,1809.6,4.7218]
[1745725856027,2.673,1809.7,1809.6,4.7218]
[1745725856226,2.673,1809.7,1809.6,6.456]
[1745725856836,1.644,1809.8,1809.7,1.1048]
[1745725857037,2.67285,1810.0,1809.9,1.10467]
[1745725857233,4.3124,1810.1,1810.0,1.10461]
[1745725857429,4.32585,1810.3,1810.2,1.10449]
[1745725857629,7.01632,1810.5,1810.4,1.10437]
[1745725857835,1.10432,1810.5,1810.4,1.10437]
[1745725858135,2.67252,1810.5,1810.4,1.10437]
[1745725858833,1.10437,1810.4,1810.3,2.83858]
[1745725859528,3.48715,1810.5,1810.4,1.10437]
[1745725859732,1.10437,1810.4,1810.3,1.1044]
[1745725859928,2.71907,1810.4,1810.3,1.1044]
[1745725862235,2.71907,1810.4,1810.3,3.722]
[1745725862442,6.78557,1810.4,1810.3,3.722]
[1745725862640,6.78557,1810.4,1809.9,5.96947]
[1745725862641,16.5932,1810.4,1809.7,3.2078]
[1745725862835,1.10474,1809.8,1809.7,3.2078]
[1745725863536,1.10486,1809.6,1809.5,9.24661441]
[1745725864143,2.77185,1809.7,1809.6,1.10486]
[1745725865640,1.667,1809.7,1809.5,0.8019]
[1745725865845,1.667,1809.7,1809.3,10.5468]
[1745725865846,1.10498,1809.4,1809.3,10.5468]
[1745725866046,1.602,1809.6,1809.3,10.5468]
[1745725866344,2.70697,1809.5,1809.4,1.10497]
[1745725866536,1.10498,1809.4,1809.3,10.5468]
[1745725866733,2.70698,1809.4,1809.3,10.5468]
[1745725866938,2.70698,1809.4,1809.3,11.65184]
[1745725868146,2.70698,1809.4,1809.3,8.03484]
[1745725868746,1.602,1809.4,1809.3,8.03484]
[1745725870049,2.70698,1809.4,1809.3,8.03484]
[1745725870747,2.70698,1809.4,1809.3,6.9298]
[1745725870949,2.70698,1809.4,1809.3,3.722]
[1745725871152,1.10504,1809.3,1809.2,1.9168]
[1745725871850,1.10532,1808.9,1808.8,1.10526]
[1745725872048,1.10532,1808.9,1808.8,2.71556]
[1745725872252,1.10532,1808.9,1808.8,6.43756]
[1745725872447,1.10532,1808.9,1808.8,10.05456]
[1745725872650,1.10532,1808.9,1808.8,6.43756]
[1745725872852,2.70728,1809.0,1808.9,1.10529]
[1745725873041,1.602,1809.0,1808.9,1.10529]
[1745725873245,2.70722,1809.0,1808.9,6.43759]
[1745725874157,1.10521,1809.1,1809.0,1.10517]
[1745725874360,2.67861,1809.1,1809.0,2.74097]
[1745725874959,1.10522,1809.0,1808.9,4.82724]
[1745725875256,2.67862,1809.0,1808.9,1.10524]
[1745725876056,2.67862,1809.0,1808.9,4.82724]
[1745725877554,1.5734,1809.0,1808.9,4.82724]
[1745725877865,2.67862,1809.0,1808.9,6.55704]
[1745725878559,2.67862,1809.0,1808.9,4.82724]
[1745725879058,2.67862,1809.0,1808.9,3.722]
[1745725879252,2.67862,1809.0,1808.9,4.82729]
[1745725879853,2.67862,1809.0,1808.9,6.55709]
[1745725880056,7.67862,1809.0,1808.9,2.46493]
[1745725880260,1.10544,1808.7,1808.6,1.10542]
[1745725880567,1.10543,1808.7,1808.6,1.10541]
[1745725880759,1.10543,1808.7,1808.6,2.79241]
[1745725881156,4.3131,1808.9,1808.8,1.10535]
[1745725881359,1.1053,1808.9,1808.8,1.10535]
[1745725881751,1.1053,1808.9,1808.8,2.79235]
[1745725882254,1.1053,1808.9,1808.8,6.51435]
[1745725883464,1.1053,1808.9,1808.8,3.722]
[1745725883761,1.1053,1808.9,1808.8,4.82735]
[1745725883962,1.1053,1808.9,1808.8,6.55335]
[1745725884364,1.1053,1808.9,1808.8,5.448]
[1745725884566,1.1053,1808.9,1808.8,6.55335]
[1745725885457,1.1053,1808.9,1808.8,3.722]
[1745725885663,12.0173,1808.9,1808.8,3.722]
[1745725885863,15.2251,1808.9,1808.8,3.722]
[1745725886066,1.10553,1808.5,1808.4,1.10557]
[1745725886262,1.10559,1808.4,1808.3,8.0969]
[1745725887267,1.10559,1808.4,1808.3,10.7133]
[1745725887676,2.77189,1808.4,1808.3,10.7133]
[1745725888067,2.77189,1808.4,1808.3,11.81895]
[1745725888266,2.77189,1808.4,1808.3,8.09695]
[1745725889561,3.2078,1808.7,1808.6,1.10547]
[1745725889864,4.31323,1808.7,1808.6,1.10547]
[1745725890070,1.10553,1808.6,1808.5,6.50319]
[1745725890267,2.72633,1808.6,1808.5,6.50319]
[1745725890666,4.31326,1808.7,1808.6,1.10547]
[1745725890968,3.2078,1808.7,1808.6,3.57567]
[1745725891168,1.10529,1808.9,1808.8,1.10535]
[1745725891574,2.72609,1808.9,1808.8,1.10535]
[1745725891763,1.10527,1809.0,1808.9,1.10522]
[1745725892160,1.10529,1808.9,1808.8,2.78098]
[1745725892871,1.10535,1808.8,1808.7,3.2078]
[1745725893174,13.5368,1808.8,1808.1,3.2078]
[1745725893368,1.10571,1808.3,1808.2,1.89647]
[1745725893572,1.10571,1808.3,1808.2,3.61647]
[1745725893767,1.10564,1808.4,1808.3,1.1056]
[1745725893967,1.10564,1808.4,1808.3,2.8256]
[1745725894576,3.2078,1808.6,1808.3,1.72]
[1745725894767,4.31327,1808.6,1808.5,1.10553]
[1745725894965,3.2078,1808.6,1808.5,1.10553]
[1745725895164,4.31327,1808.6,1808.5,10.96433]
[1745725895974,4.31327,1808.6,1808.5,6.2328]
[1745725896272,4.31327,1808.6,1808.5,7.24233]
[1745725896972,5.90477,1808.6,1808.5,7.24233]
[1745725897474,5.90477,1808.6,1808.5,2.5108]
[1745725897674,1.10553,1808.5,1808.4,5.52175]
[1745725897863,2.69703,1808.5,1808.4,1.89575]
[1745725898068,2.69703,1808.5,1808.4,5.61775]
[1745725898772,3.48793,1808.5,1808.4,3.722]
[1745725898968,9.39993,1808.5,1808.4,2.26121]
[1745725899267,1.10565,1808.3,1808.2,1.10571]
[1745725899476,5.96712,1808.4,1808.3,1.10565]
[1745725899668,4.31339,1808.4,1808.3,1.10565]
[1745725900069,3.2078,1808.7,1808.6,1.10547]
[1745725900263,4.31321,1808.7,1808.6,1.10547]
[1745725900778,5.96691,1808.7,1808.6,3.53027]
[1745725901071,1.6537,1808.7,1808.5,3.722]
[1745725901376,3.59107,1808.6,1808.5,3.722]
[1745725902170,1.10564,1808.4,1808.1,7.1771]
[1745725902375,1.10565,1808.4,1808.3,1.10564]
[1745725902577,2.80215,1808.3,1808.2,3.62836]
[1745725903179,2.80215,1808.3,1808.2,7.35036]
[1745725903880,6.7439,1808.6,1808.2,9.00888]
[1745725904178,8.4404,1808.6,1808.5,1.10553]
[1745725904376,2.5284,1808.6,1808.5,1.10553]
[1745725904575,3.63393,1808.6,1808.5,1.10553]
[1745725904779,3.63393,1808.6,1808.4,2.80915]
[1745725904780,1.10553,1808.5,1808.4,2.80915]
[1745725905073,1.10565,1808.3,1808.2,5.64681]
[1745725905375,1.10565,1808.3,1808.2,1.92481]
[1745725905977,2.77455,1808.3,1808.2,1.92481]
[1745725906178,1.6689,1808.3,1808.2,5.64681]
[1745725906377,1.6689,1808.3,1808.2,7.35191]
[1745725906573,0.7994,1808.4,1808.3,1.10565]
[1745725906777,1.90499,1808.4,1808.3,2.81075]
[1745725906977,2.77445,1808.5,1808.4,1.10559]
[1745725907176,1.6689,1808.5,1808.4,9.74049]
[1745725907478,2.77443,1808.5,1808.4,6.53269]
[1745725907870,2.77443,1808.5,1808.4,3.722]
[1745725908274,1.10571,1808.2,1808.1,3.627]
[1745725908474,1.10571,1808.2,1808.1,4.73277]
[1745725909282,2.7402,1808.3,1808.2,1.10571]
[1745725909579,1.10571,1808.2,1808.1,6.43873]
[1745725909985,1.10571,1808.2,1808.1,4.73273]
[1745725910374,1.10571,1808.2,1808.1,1.10573]
[1745725911077,1.10571,1808.2,1807.8,0.8424]
[1745725911078,1.10577,1808.1,1807.8,0.8424]
[1745725911275,1.1059,1807.9,1807.8,1.94833]
[1745725911477,1.1059,1807.9,1807.8,0.8424]
[1745725912077,1.1059,1807.9,1807.8,5.67036]
[1745725912283,12.9407,1807.9,1807.8,2.27355]
[1745725912883,14.6528,1807.9,1807.8,2.27355]
[1745725913285,1.10619,1807.5,1807.3,2.73064]
[1745725913480,4.31385,1807.7,1807.6,1.10607]
[1745725913776,4.31385,1807.7,1807.4,1.6244]
[1745725913777,1.10612,1807.6,1807.4,1.6244]
[1745725913982,1.10614,1807.5,1807.4,2.73056]
[1745725914177,1.10639,1807.1,1807.0,11.65401441]
[1745725914383,1.6972,1807.4,1807.0,7.33979441]
[1745725914580,1.10637,1807.2,1807.0,10.17140441]
[1745725914780,1.10637,1807.2,1807.1,1.10639]
[1745725914986,1.10637,1807.2,1807.0,13.79841441]
[1745725915187,1.10637,1807.2,1807.1,1.10639]
[1745725915484,1.10614,1807.5,1807.4,1.10616]
[1745725915684,1.1062,1807.4,1807.3,1.10625]
[1745725915886,1.10626,1807.3,1807.2,7.1993]
[1745725916185,1.10639,1807.1,1807.0,11.06179441]
[1745725917277,1.10639,1807.1,1807.0,7.33979441]
[1745725918089,1.10651,1806.9,1806.8,6.9298]
[1745725918287,1.10657,1806.8,1806.7,2.75201]
[1745725918786,1.6588,1807.0,1806.7,2.75201]
[1745725918787,1.10656,1806.9,1806.8,1.10655]
[1745725919185,1.10656,1806.9,1806.8,4.82855]
[1745725919886,13.15736,1806.9,1806.8,3.722]
[1745725920083,2.76692,1806.5,1806.0,12.13419441]
[1745725920280,1.10689,1806.3,1806.2,1.1069]
[1745725920589,1.10697,1806.2,1806.1,1.10698]
[1745725920889,1.10692,1806.3,1806.2,1.10693]
[1745725921091,3.2078,1806.6,1806.1,5.97523]
[1745725921292,4.7942,1806.8,1806.3,3.2078]
[1745725921483,1.10663,1806.7,1806.4,1.5866]
[1745725921688,6.72011,1806.8,1806.7,1.10663]
[1745725922094,1.5864,1806.8,1806.7,1.10663]
[1745725922388,3.2078,1807.0,1806.9,1.10651]
[1745725922389,4.31428,1807.0,1806.9,1.10651]
[1745725922786,3.2078,1807.0,1806.9,6.10651]
[1745725922985,3.2078,1807.0,1806.8,2.4059]
[1745725923185,1.10651,1806.9,1806.8,4.5413]
[1745725923387,1.10651,1806.9,1806.8,5.64782]
[1745725923689,3.2078,1807.0,1806.9,1.10651]